Cogmind - Beta 11.2 @@@ ROGUE MODE // 2023.02.14 @ 17:19:11 // Winter2022/Polymind Player: ArabianSandBoa Result: Destroyed by as-00150 with Assembled Heavy Rifle Performance ------------- Evolutions (0) 0 Regions Visited (4) 800 Robots Destroyed (17) 85 Value Destroyed (435) 435 Prototype IDs (3) 60 Alien Tech Used (0) 0 Bonus (1840) 1840 TOTAL SCORE: 3190 Bonus ------- Polymind Skill 1840 Cogmind --------- Core Integrity 0/250 Matter 0/0 Energy 235/235 System Corruption 0% Temperature Cool (0) Movement Hovering (80) Location -9/Mines Parts ------- > --- POWER (1) -------- Heavy Deuterium Engine > --- PROPULSION (1) --- Combat Antigrav System > --- UTILITY (22) ----- Advanced Launcher Guidance Computer Improved Target Analyzer Experimental Core Analyzer Improved Armor Integrity Analyzer EX Chip 1 EX Chip 1 EX Chip 1 EX Chip 1 EX Chip 1 EX Chip 1 EX Chip 1 EX Chip 1 EX Chip 1 EX Chip 1 EX Chip 2 EX Chip 2 EX Chip 2 EX Chip 2 EX Chip 2 EX Chip 2 EX Chip 2 EX Chip 2 > --- WEAPON (2) ------- AWS/EX-DEC > --- INVENTORY (1) ---- Deploy-a-Sentry Peak State ------------ > --- POWER ------------ Heavy Deuterium Engine > --- PROPULSION ------- Combat Antigrav System > --- UTILITY ---------- Advanced Launcher Guidance Computer Improved Target Analyzer Experimental Core Analyzer Improved Armor Integrity Analyzer EX Chip 1 EX Chip 1 EX Chip 1 EX Chip 1 EX Chip 1 EX Chip 1 EX Chip 1 EX Chip 1 EX Chip 1 EX Chip 1 EX Chip 2 EX Chip 2 EX Chip 2 EX Chip 2 EX Chip 2 EX Chip 2 EX Chip 2 EX Chip 2 > --- WEAPON ----------- AWS/EX-DEC > --- INVENTORY -------- Deploy-a-Sentry [Rating: 99] Favorites ----------- Power Light Nuclear Core Engine Light Ion Engine Power Core Light Nuclear Core Propulsion Aluminum Leg Leg Aluminum Leg Wheel Compact Wheel Hover Unit Combat Antigrav System Utility Improved Heat Sink Device Improved Heat Sink Storage Small Storage Unit Processor Advanced Launcher Guidance Computer Hackware EX Chip 1 Weapon Particle Gun Energy Gun Particle Gun Build | -11 -10 -10 -10 -9 ------- Run | Scr Mat Min Exi Min Slots Evolved . | . . . . . Power . | . . . . . Propulsion . | . . . . . Utility . | . . . . . Weapon . | . . . . . Parts Attached . | . . . . . Power . | . . . . . Engine . | . . . . . Core . | . . . . . Reactor . | . . . . . Propulsion . | . . . . . Treads . | . . . . . Leg . | . . . . . Wheel . | . . . . . Hover . | . . . . . Flight . | . . . . . Utility . | . . . . . Device . | . . . . . Storage . | . . . . . Processor . | . . . . . Hackware . | . . . . . Protection . | . . . . . Artifact . | . . . . . Weapon . | . . . . . Energy Gun . | . . . . . Energy Cannon . | . . . . . Ballistic Gun . | . . . . . Ballistic Cannon . | . . . . . Launcher . | . . . . . Special Weapon . | . . . . . Impact Weapon . | . . . . . Slashing Weapon . | . . . . . Piercing Weapon . | . . . . . Special Melee Weapon . | . . . . . Unidentified Prototypes . | . . . . . Parts Lost 3 | . 3 . . . Power 1 | . 1 . . . Propulsion 2 | . 2 . . . Utility . | . . . . . Weapon . | . . . . . Highest Loss Streak 2 | . 2 . . . To Critical Strikes . | . . . . . Average Slot Usage (%) 74 | . 84 40 60 96 Engine 3 | . 4 . 1 3 Core 6 | . 8 . . . Leg 16 | . 23 . . . Wheel 6 | . 8 . . . Device 19 | . 20 20 12 . Storage 3 | . 4 . . . Hackware 3 | . . . 24 69 Energy Gun 16 | . 15 20 13 3 Naked Turns 2 | . 1 . 1 . Heaviest Build 21 | 9 9 4 21 21 Greatest Support 32 | 32 32 3 21 21 Greatest Overweight (x) 1 | . 1 1 1 . Average Overweight (x) . | . . 1 . . Largest Inventory Capacity 4 | 4 4 1 1 1 Average Capacity 1 | 2 1 1 . 1 Most Carried 4 | . 4 . 1 1 Average Carried . | . . . . 1 Final Capacity 4 | 4 1 1 1 1 Final Carried 1 | . . . 1 1 Class Distribution -------------------- 80% | Grunt 14% | Recycler 4% | Tinkerer Dominant Class ---------------- Grunt | -10/Materials Grunt | -10/Mines Grunt | -10/Exiles Tinkerer | -9/Mines Resources | -11 -10 -10 -10 -9 ----------- Run | Scr Mat Min Exi Min Matter Collected . | . . . . . Remotely . | . . . . . Salvage Created 407 | . 391 . 16 . Parts 21 | . 20 . 1 . Haulers Intercepted . | . . . . . Recyclers Shooed 1 | . 1 . . . Parts Field Recycled . | . . . . . Retrieved Matter . | . . . . . Parts Self-Destructed . | . . . . . Prevented . | . . . . . Kills | -11 -10 -10 -10 -9 ------- Run | Scr Mat Min Exi Min Combat Hostiles Destroyed 16 | . 14 . 1 1 Guns 15 | . 13 . 1 1 Classes Destroyed 5 | . 3 . 1 1 Watcher 1 | . 1 . . . Swarmer 6 | . 6 . . . Grunt 9 | . 8 . 1 . Zionite 1 | . . . 1 . Assembled 1 | . . . . 1 Best Kill Streak 3 | . 3 . 2 1 Combat Bots Only 3 | . 3 . 1 1 Max Kills in Single Turn 1 | . 1 . 1 1 Gunslinging . | . . . . . Exploded . | . . . . . Melee . | . . . . . Uniques/NPCs Destroyed . | . . . . . Combat | -11 -10 -10 -10 -9 -------- Run | Scr Mat Min Exi Min Damage Taken 633 | . 552 . 40 41 Core 260 | . 220 . 10 30 Absorbed by Shields . | . . . . . Core Remaining (%) 100 | 100 . . . . Volleys Fired 76 | . 76 . . . Largest 1 | . 1 . . . Hottest 65 | . 65 . . . Shots Fired 84 | . 76 . 2 6 Gun 84 | . 76 . 2 6 Cannon . | . . . . . Launcher . | . . . . . Special . | . . . . . Kinetic . | . . . . . Thermal 76 | . 76 . . . Explosive . | . . . . . Electromagnetic 8 | . . . 2 6 Robot Hit Streak 21 | . 21 . 4 6 Robot Miss Streak 4 | . 4 . 1 3 Penetration Max . | . . . . . Secondary Targets . | . . . . . Autonomous 8 | . . . 2 6 Shots Hit Robots 57 | . 50 . 2 5 Core Hits 22 | . 16 . 3 3 Critical Kills . | . . . . . Critical Parts Destroyed . | . . . . . Critical Strikes 4 | . 2 . 1 1 Burn 2 | . 2 . . . Corrupt 2 | . . . 1 1 Melee Attacks . | . . . . . Impact . | . . . . . Slashing . | . . . . . Piercing . | . . . . . Sneak Attacks . | . . . . . Combat Hostiles . | . . . . . Follow-up Attacks . | . . . . . Damage Inflicted 1008 | . 822 . 52 134 Guns 1008 | . 822 . 52 134 Cannons . | . . . . . Explosions . | . . . . . Melee . | . . . . . Ramming . | . . . . . Kinetic . | . . . . . Thermal 822 | . 822 . . . Explosive . | . . . . . Electromagnetic 186 | . . . 52 134 Impact . | . . . . . Slashing . | . . . . . Piercing . | . . . . . Highest Corruption . | . . . . . Average Corruption . | . . . . . Corruption Purged . | . . . . . Corruption Blocked . | . . . . . Overload Shots . | . . . . . Overflow Damage . | . . . . . Projectiles . | . . . . . Explosions . | . . . . . Melee . | . . . . . Knockbacks . | . . . . . Impact . | . . . . . Kinetic . | . . . . . Secondary . | . . . . . Self-Inflicted Damage . | . . . . . Shots . | . . . . . Rammed . | . . . . . Targets Rammed . | . . . . . Kicked . | . . . . . Crushed . | . . . . . Highest Temperature 22 | . 22 . . . Average Temperature 11 | . 11 . . . Received Heat Transfer 123 | . 123 . . . Siege Activations . | . . . . . Robots Corrupted . | . . . . . Combat Hostiles . | . . . . . Parts Fried . | . . . . . Impact Corruptions . | . . . . . Robots Melted 1 | . 1 . . . Combat Hostiles 1 | . 1 . . . Parts Melted 6 | . 6 . . . Heat Transferred 1998 | . 1998 . . . Parts Sabotaged . | . . . . . Parts Stolen . | . . . . . Parts Stripped . | . . . . . Power Chain Reactions . | . . . . . Missiles Intercepted . | . . . . . Alert | -11 -10 -10 -10 -9 ------- Run | Scr Mat Min Exi Min Peak Influence 277 | . 277 55 . 15 Initial 55 | . . 55 . . Average 101 | . 115 55 . 10 Maximum Alert Level 1 | . 1 . . . Low Security (%) 89 | 100 86 100 . 100 Level 1 10 | . 13 . . . Level 2 . | . . . . . Level 3 . | . . . . . Level 4 . | . . . . . Level 5 . | . . . . . High Security . | . . . . . Max Security . | . . . . . Squads Dispatched 5 | . 5 . . . Investigation 4 | . 4 . . . Extermination . | . . . . . Reinforcement 1 | . 1 . . . Assault . | . . . . . Garrison . | . . . . . Intercept . | . . . . . Searches Triggered . | . . . . . Construction Impeded . | . . . . . Haulers Reinforced . | . . . . . Active Scanning Responses . | . . . . . Cargo Convoy Interrupts . | . . . . . Stealth | -11 -10 -10 -10 -9 --------- Run | Scr Mat Min Exi Min Distress Signals 2 | . 2 . . . Communications Jammed . | . . . . . Distress Signals . | . . . . . Times Spotted 38 | . 20 . 5 13 Peak Tracking Total 13 | . 4 . 10 13 Tactical Retreats 1 | . 1 . . . Traps | -11 -10 -10 -10 -9 ------- Run | Scr Mat Min Exi Min Traps Triggered 1 | . 1 . . . Indirectly . | . . . . . Trap Hack Attempts . | . . . . . Triggered . | . . . . . Disarmed . | . . . . . Reprogrammed . | . . . . . Reused . | . . . . . Traps Extracted . | . . . . . Installed . | . . . . . Triggered . | . . . . . Machines | -11 -10 -10 -10 -9 ---------- Run | Scr Mat Min Exi Min Machines Disabled 3 | . 3 . . . Max in Single Turn 1 | . 1 . . . Machines Sabotaged . | . . . . . Garrisons Compromised . | . . . . . Overloaded Fab Kills . | . . . . . Hacking | -11 -10 -10 -10 -9 --------- Run | Scr Mat Min Exi Min Machines Accessed 4 | . 4 . . . Terminals 3 | . 3 . . . Fabricators . | . . . . . Repair Stations . | . . . . . Recycling Units 1 | . 1 . . . Scanalyzers . | . . . . . Garrison Access . | . . . . . Total Hacks 14 | . 14 . . . Successful 8 | . 8 . . . Failed 6 | . 6 . . . Catastrophic . | . . . . . Database Lockouts . | . . . . . Manual 11 | . 11 . . . Terminals 13 | . 13 . . . Fabricators . | . . . . . Repair Stations . | . . . . . Recycling Units 1 | . 1 . . . Scanalyzers . | . . . . . Garrison Access . | . . . . . Terminal Hacks 2 | . 2 . . . Robot Analysis 2 | . 2 . . . Fabricator Hacks . | . . . . . Repair Station Hacks . | . . . . . Recycling Unit Hacks . | . . . . . Scanalyzer . | . . . . . Garrison Access Hacks . | . . . . . Unauthorized Hacks 6 | . 6 . . . Terminals 5 | . 5 . . . Botnet 3 | . 3 . . . Disrupt 1 | . 1 . . . Sabotage 1 | . 1 . . . Fabricators . | . . . . . Repair Stations . | . . . . . Recycling Units 1 | . 1 . . . Tunnel 1 | . 1 . . . Scanalyzers . | . . . . . Garrison Access . | . . . . . Data Cores Recovered . | . . . . . Used . | . . . . . Hacking Detections 3 | . 3 . . . Full Trace Events 2 | . 2 . . . Feedback Events . | . . . . . Feedback Blocked . | . . . . . Robot Schematics Acquired . | . . . . . Robots Built . | . . . . . Authchips . | . . . . . Time . | . . . . . Total Robot Build Rating . | . . . . . Part Schematics Acquired . | . . . . . Parts Built . | . . . . . Authchips . | . . . . . Time . | . . . . . Total Part Build Rating . | . . . . . Parts Repaired . | . . . . . Time . | . . . . . Parts Recycled . | . . . . . Recycled Matter . | . . . . . Retrieved Matter . | . . . . . Retrieved Components . | . . . . . Parts Scanalyzed . | . . . . . Part Schematics Acquired . | . . . . . Parts Damaged . | . . . . . Bothacking | -11 -10 -10 -10 -9 ------------ Run | Scr Mat Min Exi Min Used RIF Installer . | . . . . . Robots Hacked 1 | . 1 . . . Non-combat . | . . . . . Combat 1 | . 1 . . . Robot Hacks Applied 1 | . 1 . . . find_shortcuts 1 | . 1 . . . Relay Couplers Released . | . . . . . Fabnet Peak Effective % . | . . . . . Robots Rewired . | . . . . . Allies Hacked . | . . . . . Hacks Repelled . | . . . . . Allies | -11 -10 -10 -10 -9 -------- Run | Scr Mat Min Exi Min Total Allies 1 | . . . . 1 Largest Group 1 | . . . . 1 Highest-Rated Group 31 | . . . . 31 Highest-Rated Ally 31 | . . . . 31 Total Orders . | . . . . . Ally Attacks 3 | . . . . 3 Total Damage 22 | . . . . 22 Kills 1 | . . . . 1 Allies Corrupted . | . . . . . Allies Melted . | . . . . . Intel | -11 -10 -10 -10 -9 ------- Run | Scr Mat Min Exi Min Robot Analysis Total 4 | 1 3 . . . Derelict Logs Recovered . | . . . . . Drone Launches . | . . . . . Drone Recoveries . | . . . . . Exploration | -11 -10 -10 -10 -9 ------------- Run | Scr Mat Min Exi Min Turns Passed 1214 | 14 844 202 139 15 Spaces Moved 768 | 21 380 203 150 14 Core 365 | 13 52 203 97 . Treads . | . . . . . Legs 159 | . 159 . . . Wheels 177 | 8 169 . . . Hover 67 | . . . 53 14 Flight . | . . . . . Fastest Speed 50 | 50 50 100 50 80 Average Speed 101 | 69 108 100 92 80 Slowest Speed 120 | 100 120 100 100 80 Overloaded Moves . | . . . . . Propulsion Burnouts . | . . . . . Robots Hopped . | . . . . . Cave-ins Triggered . | . . . . . Exploration Rate (%) 32 | 3 63 42 52 3 Regions Visited 4 Branch Regions 3 Pre-discovered Areas 1 | . 1 . . . Known Exits Taken . | . . . . . Unknown Exits Taken 4 | 1 1 1 1 . Scrap Searched 1 | . . 1 . . Spaces Dug . | . . . . . Terrain Destroyed . | . . . . . Melee . | . . . . . Projectile . | . . . . . AOE . | . . . . . Terrain Rammed . | . . . . . Walls Destroyed . | . . . . . Machines Disabled . | . . . . . Actions | -11 -10 -10 -10 -9 --------- Run | Scr Mat Min Exi Min Total 1124 | 20 736 202 149 17 Wait 280 | . 277 . . 3 Move 764 | 20 379 202 149 14 Hop . | . . . . . Pick Up 4 | . 4 . . . Fast Attach . | . . . . . Attach . | . . . . . Detach . | . . . . . Swap . | . . . . . Drop . | . . . . . Fire 76 | . 76 . . . Melee . | . . . . . Ram . | . . . . . Kick . | . . . . . Crush . | . . . . . Escape Stasis . | . . . . . Rewire . | . . . . . Trap . | . . . . . Miscellaneous . | . . . . . Route ------- -11/Scrapyard -10/Materials (discovered 2 exits: [*Mat] / [*Min]) -10/Mines -10/Exiles -9/Mines History --------- Turn | Location | Event 2 | -11/Scrapyard | Met Revision 17 3 | -11/Scrapyard | Discovered new exit (range 15) 15 | -11/Scrapyard | Entered Materials 221 | -10/Materials | Discovered new exit (range 12) 589 | -10/Materials | Discovered new exit (range 15) 761 | -10/Materials | Core integrity fell below 50% 800 | -10/Materials | Core integrity fell below 20% 859 | -10/Materials | Entered Mines 1056 | -10/Mines | Deemed a non-threat by the Exiles lab entrance 1057 | -10/Mines | Discovered new exit (range 5) 1061 | -10/Mines | Entered Exiles 1085 | -10/Exiles | Met 8R-AWN 1103 | -10/Exiles | Met EX-HEX 1139 | -10/Exiles | Met EX-DEC 1158 | -10/Exiles | Took control of EX-DEC (ally) 1159 | -10/Exiles | Attacked by the Exiles 1193 | -10/Exiles | Discovered new exit (range 10) 1200 | -10/Exiles | Left Exiles lab with Deploy-a-Sentry 1200 | -10/Exiles | Entered Mines 1201 | -9/Mines | Assembled infested the area 1201 | -9/Mines | Met a Derelict testing a Signal Generator 1215 | -9/Mines | Destroyed by as-00150 with Assembled Heavy Rifle Last Messages --------------- time, folks! 01165_ Acquired 23 Protomatter. 01166_ I3-88M(z) destroyed. 01171_ EX-BIN: "I just want to science!" 01193_ EXIT=FOUND LOCATION=UNKNOWN GOAL=ESCAPE 01201_ ALERT: Infestation in the mines, dispatching Demolisher response squad. 01201_ A derelict emerges from the shadows: "Quiet! I'm testing a new device we can use to divert those annoying Unaware when we need to." 01204_ Signal Generator broadcasts a burst of procedurally generated transmissions. 01204_ ALERT: Intercepting significant anomalous signal. Redirecting assault force. 01205_ FI-SVL(g): "Okay, I guess that means it works. Now let's get out of here!" 01211_ as-38361 suffers critical hit (Burn). 01211_ as-38361 destroyed. 01213_ as-21377 destroyed. Map ----- +----------------------------------------------------+ | ?????????????????????????????????????????????????? | | ?????????????????????????????????????????????????? | | ?????????????????????????????????????????????????? | | ?????????????????????????????????????????????????? | | ?????????????????????????????????????????????????? | | ?????????????????????????????????????????????????? | | ?????????????????????????????????????????????????? | | ?????????????????????????????????????????????????? | | ?????????????????????????????????????????????????? | | ?????????????????????????????????????????????????? | | ?????????????????????????????????????????????????? | | ?????????????????????????????????????????????????? | | ?????????????????????????????????????????????????? | | ?????????????????????????????????????????????????? | | ?????????????????????????????????????????????????? | | ?????????????????????????????????????????????????? | | ?????????????????????????????????????????????????? | | ?????????????????????????????????????????????????? | | ?????????????????????????????????????????????????? | | ?????????????????????????????????????????????????? | | ?????????????????????????????????????????????????? | | ???????????????????????????####??????????????????? | | ????????????????????????#### ##?????????????????? | | ???????????????????????## & a###### #?????? | | ???????????????????????# aaagaaaaa #??????? | | ???????????????????????# c %a###### #??????? | | ???????????????????????## ##??????????##??????? | | ????????????????????????## ##???????????????????? | | ?????????????????????????####????????????????????? | | ?????????????????????????????????????????????????? | | ?????????????????????????????????????????????????? | | ?????????????????????????????????????????????????? | | | | | | | | | | | | | | | | | | | | | | | | | | | | | | | | | | | | | +----------------------------------------------------+ Best States ------------- Heat Dissipation 40 Energy Generation 23 Energy Capacity 235 Sight Range 16 Terrain Scan Density 10 Resistance: EM 90 Evasion (%) 55 Launcher Accuracy 40 Target Analysis 6 Core Analysis 8 Armor Integrity Analysis 40 Offensive Hacking 70 Defensive Hacking 56 Item Schematics ----------------- None Robot Schematics ------------------ None Fabricated ------------ Nothing Alien Tech Used ----------------- None Achievements -------------- None Challenges ------------ None Polymind | -11 -10 -10 -10 -9 ---------- Run | Scr Mat Min Exi Min Hosts 3 | 1 1 . 1 . Combat Hostiles 1 | . 1 . . . Allies 1 | . . . 1 . Unique Host Classes 3 | 1 1 . 1 . Average Host Suspicion 70 | 1 87 40 25 . Unsuspicious Activity 72 | 2 . . 10 60 Returns to Shadow . | . . . . . Fuzzy Dispatches . | . . . . . Protomatter Created 77 | . 31 . 23 23 Used 68 | 5 30 . 33 . Decayed . | . . . . . Highest Spend 33 | 5 30 . 33 . Top 5 Hosts by Kills: G-47 Trooper (-10/Materials: 14) EX-DEC (-10/Exiles: 2) Game ------ Seed ZioniteArmorExpander Manual? 0 Play Time 00:08:56 Cumulative 313.1 hours Start 2023.02.14 @ 17:10:34 End 2023.02.14 @ 17:19:11 Sessions 1 Manual Loads 0 Difficulty Rogue Special Mode Winter2022/Polymind Game No. 387 Rogue 387 Adventurer 0 Explorer 0 Win Type - Total 0 Types 0/0/0/0/0/0/0/0/0 Lore% 46 Gallery% 72 Achievement% 60 Wizard Run 0 Options --------- ASCII 0 Keyboard 0 Movement Mouse Keybinds 0 Fullscreen 2 Font 24/Smallcaps Map View 76x50 Tactical HUD 1 Map Filters NONE Filters NONE Steam 1 RUN: e8809c99-7b1e-429f-bd0b-6d78ac9fa4d2